fUSD/lending_fUSD_20250205
["ID","MTS","AMOUNT","RATE_DAILY","PERIOD"]
[351692428,1738741832738,-500.0,9.972e-05,2]
[351692431,1738741832748,-529.8,9.972e-05,2]
[351692433,1738741832757,-500.0,9.972e-05,2]
[351692435,1738741832767,-500.0,9.972e-05,2]
[351692436,1738741832776,-779.41,9.972e-05,2]
[351692439,1738741832787,-500.0,9.972e-05,2]
[351692441,1738741832797,-493.38132563,9.972e-05,2]
[351692443,1738741832809,-500.0,9.972e-05,2]
[351692445,1738741832818,-500.0,9.972e-05,2]
[351692447,1738741832827,-295.14,9.972e-05,2]
[351692448,1738741832835,-500.0,9.972e-05,2]
[351692451,1738741832845,-1193.89,9.972e-05,2]
[351692453,1738741832854,-206.07,9.972e-05,2]
[351692454,1738741832863,-500.0,9.972e-05,2]
[351692456,1738741832873,-308.35610953,9.972e-05,2]
[351692458,1738741832882,-347.14,9.972e-05,2]
[351692460,1738741832891,-503.56133493,9.972e-05,2]
[351692462,1738741832901,-503.22982315,9.972e-05,2]
[351692464,1738741832910,-500.0,9.972e-05,2]
[351692466,1738741832920,-500.0,9.972e-05,2]
[351692468,1738741832929,-500.0,9.972e-05,2]
[351692470,1738741832938,-510.08,9.972e-05,2]
[351692472,1738741832948,-500.0,9.972e-05,2]
[351692474,1738741832956,-500.0,9.972e-05,2]
[351692476,1738741832966,-500.0,9.972e-05,2]
[351692478,1738741832975,-537.10009987,9.972e-05,2]
[351692480,1738741832985,-500.0,9.972e-05,2]
[351692482,1738741832995,-500.0,9.972e-05,2]
[351692484,1738741833004,-500.0,9.972e-05,2]
[351692486,1738741833014,-500.0,9.972e-05,2]
[351692488,1738741833023,-500.0,9.972e-05,2]
[351692490,1738741833033,-500.0,9.972e-05,2]
[351692492,1738741833043,-505.4170299,9.972e-05,2]
[351692494,1738741833055,-500.0,9.972e-05,2]
[351692496,1738741833064,-348.887523,9.972e-05,2]
[351692498,1738741833075,-500.0,9.972e-05,2]
[351692500,1738741833085,-271.26,9.972e-05,2]
[351692502,1738741833094,-236631.0,9.973e-05,2]
[351692504,1738741833105,-15661.0,9.973e-05,2]
[351692506,1738741833115,-360.94475676,9.973e-05,2]
[351692508,1738741833124,-500.0,9.973e-05,2]
[351692510,1738741833134,-164.73579967,9.973e-05,2]
[351692512,1738741833144,-151.96389305,9.973e-05,2]
[351692514,1738741833154,-499.92220637,9.973e-05,2]
[351692516,1738741833164,-502.74555255,9.973e-05,2]
[351692518,1738741833175,-500.0,9.973e-05,2]
[351692520,1738741833184,-500.0,9.973e-05,2]
[351692522,1738741833194,-504.97532134,9.999e-05,2]
[351692524,1738741833204,-500.0,9.999e-05,2]
[351692526,1738741833214,-503.01690556,9.999e-05,2]
[351692528,1738741833223,-524.94,9.999e-05,2]
[351692530,1738741833232,-504.19611414,9.999e-05,2]
[351692532,1738741833242,-502.60894588,9.999e-05,2]
[351692534,1738741833251,-505.30211794,9.999e-05,2]
[351692536,1738741833265,-500.0,9.999e-05,2]
[351692538,1738741833274,-504.00421241,9.999e-05,2]
[351692540,1738741833284,-617.2,9.999e-05,2]
[351692542,1738741833295,-500.0,9.999e-05,2]
[351692544,1738741833309,-255.18589226,9.999e-05,2]
[351692546,1738741833319,-420.38638335,9.999e-05,2]
[351692548,1738741833329,-500.0,9.999e-05,2]
[351692550,1738741833339,-11687171.90147669,0.0001,2]
[351692553,1738741833353,-1641849.17928,0.0001,2]
[351692555,1738741833364,-1021520.0,0.0001,2]
[351692557,1738741833378,-2378.89998299,0.0001,2]
[351692561,1738741833409,925.57,8.733e-05,2]
[351692974,1738741837765,-642.0,9.644e-05,2]
[351692976,1738741837774,-154.75705727,9.972e-05,2]
[351692978,1738741837786,-345.24294273,9.972e-05,2]
[351692980,1738741837795,-6155.04125277,0.0001,2]
[351693158,1738741839664,-497.00408739,0.0001,2]
[351693170,1738741839773,-385.294,0.0001,2]
[351693172,1738741839784,-947.72946,0.0001,2]
[351693200,1738741840047,-500.0,9.972e-05,2]
[351693202,1738741840056,-82.04956557,0.0001,2]
[351693205,1738741840068,-2071.37592767,0.0001,2]
[351693207,1738741840079,-489.005,0.0001,2]
[351693264,1738741842972,-373.17838953,9.972e-05,2]
[351693265,1738741842983,-126.82161047,9.972e-05,2]
[351693267,1738741842992,-500.0,9.972e-05,2]
[351693268,1738741843001,-44997.36417504,0.0001,2]
[351693270,1738741843012,-1764.09695905,0.0001,2]
[351693291,1738741845613,-500.0,9.972e-05,2]
[351693292,1738741845623,-1437.19372144,0.0001,2]
[351693293,1738741845635,-407.82269628,0.0001,2]
[351693294,1738741845675,-642041.11428157,0.0001,2]
[351693295,1738741845687,-192823.16763359,0.0001,2]
[351693296,1738741845935,-256200.000001,0.0001,2]
[351693297,1738741845946,-4163.49002938,0.0001,2]
[351693298,1738741846068,-830.12969053,0.0001,2]
[351693309,1738742278354,581.13643649,8.219e-05,2]
[351693311,1738742293874,10000.0,0.000189,120]
[351693312,1738742299990,10000.0,0.000189,120]
[351693313,1738742304999,10000.0,0.000189,120]
[351693314,1738742313432,10000.0,0.000189,120]
[351693315,1738742318260,5312.64658721,0.000181,90]
[351693316,1738742327802,10000.0,0.0001411,60]
[351693317,1738742333891,10000.0,0.0001712,90]
[351693318,1738742490753,150.0,0.00017501,120]
[351693322,1738742550748,150.0,0.00017764,120]
[351693323,1738742757136,-280.10356351,8.219e-05,2]
[351693324,1738742757157,-26.2215869,8.219e-05,2]
[351693326,1738742791297,150.0,0.00017683,120]
[351693327,1738742825119,-412.17404986,8.219e-05,2]
[351693328,1738742825143,-524.0765,8.973e-05,2]
[351693329,1738742825166,-41086.04554037,9.238e-05,2]
[351693330,1738742850756,150.0,0.00018288,120]
[351693331,1738742911344,150.0,0.00017387,120]
[351693332,1738742970738,150.0,0.00017988,120]
[351693334,1738743031706,-3499.37093081,9.238e-05,2]
[351693335,1738743031718,-258.57,9.238e-05,2]
[351693336,1738743031756,-292.29225526,9.238e-05,2]
[351693337,1738743031766,-798.29127356,9.238e-05,2]
[351693338,1738743031773,-4453.67959749,9.273e-05,2]
[351693339,1738743032036,-1282.10129402,9.273e-05,2]
[351693340,1738743032047,-12854.78917059,9.273e-05,2]
[351693430,1738743037826,-5309.4299379,9.273e-05,2]
[351693431,1738743037838,-203.14817501,9.275e-05,2]
[351693432,1738743037945,-742.78420413,9.275e-05,2]
[351693434,1738743039663,-54.06762086,9.275e-05,2]
[351693435,1738743039672,-435.87237914,9.305e-05,2]
[351693436,1738743039684,-129.98762086,9.305e-05,2]
[351693437,1738743039695,-250.0,9.31e-05,2]
[351693438,1738743039704,-4.98915687,9.749e-05,2]
[351693439,1738743039769,-669.25084313,9.749e-05,2]
[351693440,1738743039779,-1703.43536801,9.8e-05,2]
[351693441,1738743039789,-175.267,9.816e-05,2]
[351693442,1738743039799,-3812.298,9.816e-05,2]
[351693443,1738743039808,-1594.27,9.816e-05,2]
[351693444,1738743039817,-1229.6094,9.9e-05,2]
[351693445,1738743039827,-2002.66,9.9e-05,2]
[351693446,1738743039836,-500.0,9.972e-05,2]
[351693447,1738743039846,-503.07863002,9.972e-05,2]
[351693448,1738743039856,-500.0,9.972e-05,2]
[351693449,1738743039865,-503.89141282,9.972e-05,2]
[351693450,1738743039875,-503.55578657,9.972e-05,2]
[351693451,1738743039884,-500.0,9.972e-05,2]
[351693452,1738743039894,-496.98230094,9.972e-05,2]
[351693453,1738743039903,-500.0,9.972e-05,2]
[351693454,1738743039913,-500.0,9.972e-05,2]
[351693455,1738743039923,-500.0,9.972e-05,2]
[351693456,1738743039932,-500.0,9.972e-05,2]
[351693457,1738743039942,-500.0,9.972e-05,2]
[351693458,1738743039951,-500.0,9.972e-05,2]
[351693459,1738743039961,-500.0,9.972e-05,2]
[351693460,1738743039972,-592.48,9.972e-05,2]
[351693461,1738743039982,-500.0,9.972e-05,2]
[351693462,1738743039991,-500.0,9.972e-05,2]
[351693463,1738743040000,-500.0,9.972e-05,2]
[351693464,1738743040009,-500.0,9.972e-05,2]
[351693465,1738743040019,-500.0,9.972e-05,2]
[351693466,1738743040029,-500.0,9.972e-05,2]
[351693467,1738743040038,-500.0,9.972e-05,2]
[351693468,1738743040047,-500.0,9.972e-05,2]
[351693469,1738743040057,-500.0,9.972e-05,2]
[351693470,1738743040066,-500.0,9.972e-05,2]
[351693471,1738743040075,-500.0,9.972e-05,2]
[351693472,1738743040084,-511.56,9.972e-05,2]
[351693473,1738743040094,-578.61062726,9.972e-05,2]
[351693474,1738743040103,-556.53,9.972e-05,2]
[351693475,1738743040112,-500.0,9.973e-05,2]
[351693476,1738743040121,-500.0,9.973e-05,2]
[351693477,1738743040131,-217.66,9.999e-05,2]
[351693478,1738743040139,-630.62376672,9.999e-05,2]
[351693479,1738743040149,-500.0,9.999e-05,2]
[351693480,1738743040159,-500.0,9.999e-05,2]
[351693481,1738743040169,-163.68,9.999e-05,2]
[351693482,1738743040179,-1144.14,9.999e-05,2]
[351693483,1738743040188,-527.60367029,9.999e-05,2]
[351693484,1738743040197,-168.38081092,9.999e-05,2]
[351693485,1738743040206,-500.0,9.999e-05,2]
[351693486,1738743040215,-500.0,9.999e-05,2]
[351693487,1738743040224,-500.0,9.999e-05,2]
[351693488,1738743040235,-500.0,9.999e-05,2]
[351693489,1738743040245,-163.38946282,9.999e-05,2]
[351693490,1738743040255,-588.93485249,9.999e-05,2]
[351693491,1738743040264,-505.75438044,9.999e-05,2]
[351693492,1738743040273,-505.08287208,9.999e-05,2]
[351693493,1738743040283,-505.03202553,9.999e-05,2]
[351693494,1738743040293,-504.28597289,9.999e-05,2]
[351693495,1738743040303,-500.0,9.999e-05,2]
[351693496,1738743040311,-503.76098316,9.999e-05,2]
[351693497,1738743040321,-500.0,9.999e-05,2]
[351693498,1738743040332,-500.0,9.999e-05,2]
[351693499,1738743040342,-500.0,9.999e-05,2]
[351693500,1738743040352,-505.98726123,9.999e-05,2]
[351693501,1738743040362,-500.0,9.999e-05,2]
[351693502,1738743040371,-500.0,9.999e-05,2]
[351693503,1738743040380,-500.0,9.999e-05,2]
[351693504,1738743040389,-500.0,9.999e-05,2]
[351693505,1738743040399,-500.0,9.999e-05,2]
[351693506,1738743040408,-500.0,9.999e-05,2]
[351693507,1738743040418,-500.0,9.999e-05,2]
[351693508,1738743040427,-517.69,9.999e-05,2]
[351693509,1738743040437,-500.0,9.999e-05,2]
[351693510,1738743040447,-500.0,9.999e-05,2]
[351693511,1738743040457,-500.0,9.999e-05,2]
[351693512,1738743040466,-500.0,9.999e-05,2]
[351693513,1738743040476,-500.0,9.999e-05,2]
[351693514,1738743040485,-500.0,9.999e-05,2]
[351693515,1738743040495,-779.17,9.999e-05,2]
[351693516,1738743040505,-571.91,9.999e-05,2]
[351693517,1738743040514,-500.0,9.999e-05,2]
[351693518,1738743040524,-500.0,9.999e-05,2]
[351693519,1738743040533,-500.0,9.999e-05,2]
[351693520,1738743040542,-214.67,9.999e-05,2]
[351693521,1738743040552,-500.0,9.999e-05,2]
[351693522,1738743040561,-500.0,9.999e-05,2]
[351693523,1738743040571,-500.0,9.999e-05,2]
[351693524,1738743040580,-500.0,9.999e-05,2]
[351693525,1738743040590,-500.0,9.999e-05,2]
[351693526,1738743040600,-500.0,9.999e-05,2]
[351693527,1738743040609,-500.0,9.999e-05,2]
[351693528,1738743040618,-500.0,9.999e-05,2]
[351693529,1738743040628,-500.0,9.999e-05,2]
[351693530,1738743040638,-500.0,9.999e-05,2]
[351693531,1738743040650,-500.0,9.999e-05,2]
[351693532,1738743040659,-500.0,9.999e-05,2]
[351693533,1738743040668,-410.61566941,9.999e-05,2]
[351693534,1738743040677,-500.0,9.999e-05,2]
[351693535,1738743040687,-500.0,9.999e-05,2]
[351693536,1738743040696,-500.0,9.999e-05,2]
[351693537,1738743040705,-500.0,9.999e-05,2]
[351693538,1738743040715,-500.0,9.999e-05,2]
[351693539,1738743040727,-500.0,9.999e-05,2]
[351693540,1738743040738,-500.0,9.999e-05,2]
[351693541,1738743040747,-500.0,9.999e-05,2]
[351693542,1738743040756,-500.0,9.999e-05,2]
[351693543,1738743040766,-500.0,9.999e-05,2]
[351693544,1738743040775,-500.0,9.999e-05,2]
[351693545,1738743040784,-500.0,9.999e-05,2]
[351693546,1738743040793,-500.0,9.999e-05,2]
[351693547,1738743040803,-500.0,9.999e-05,2]
[351693548,1738743040812,-500.0,9.999e-05,2]
[351693549,1738743040821,-500.0,9.999e-05,2]
[351693550,1738743040831,-179.02,9.999e-05,2]
[351693551,1738743040840,-493.99,9.999e-05,2]
[351693552,1738743040850,-239.88,9.999e-05,2]
[351693553,1738743040859,-500.0,9.999e-05,2]
[351693554,1738743040869,-500.0,9.999e-05,2]
[351693555,1738743040879,-500.0,9.999e-05,2]
[351693556,1738743040888,-503.09688166,9.999e-05,2]
[351693557,1738743040898,-500.0,9.999e-05,2]
[351693558,1738743040908,-500.0,9.999e-05,2]
[351693559,1738743040918,-500.0,9.999e-05,2]
[351693560,1738743040927,-426.61208198,9.999e-05,2]
[351693561,1738743040936,-222957.50182703,0.0001,2]
[351693562,1738743040956,-19106.63287342,0.0001,2]
[351693563,1738743040976,-1743.3036,0.0001,2]
[351693573,1738743042714,-347.17271533,9.999e-05,2]
[351693579,1738743042820,-221.03728467,9.999e-05,2]
[351693580,1738743042830,-500.0,9.999e-05,2]
[351693581,1738743042839,-332122.99103977,0.0001,2]
[351693582,1738743042928,-4802.1999628,0.0001,2]
[351693596,1738743045814,-403.72989834,9.999e-05,2]
[351693597,1738743045827,-96.27010166,9.999e-05,2]
[351693598,1738743045837,-248.25605729,0.0001,2]
[351693599,1738743045849,-524.07652098,0.0001,2]
[351693600,1738743045924,-2673.52877145,0.0001,2]
[351693601,1738743045935,-7095.8639,0.0001,2]
[351693602,1738743045979,-96999.99999931,0.0001,2]
[351693605,1738743046860,-4669.14401008,0.0001,2]
[351693606,1738743047051,-3766.83391113,0.0001,2]
[351693614,1738743270809,150.0,0.00018697,120]
[351693615,1738743303747,253.96565139,0.0001,30]
[351693616,1738743330812,150.0,0.00017845,120]
[351693620,1738743510799,150.0,0.0001878,120]
[351693622,1738743571036,150.0,0.00018251,120]
[351693624,1738743750984,150.0,0.00018526,120]
[351693625,1738743769318,500.0,0.00018,120]
[351693626,1738743796989,1000.0,0.0001844,120]
[351693628,1738743834882,750.0,0.000188,120]
[351693629,1738743871524,150.0,0.00018568,120]
[351693630,1738743887744,5100.0,0.00012,32]
[351693631,1738743896295,450.0,0.000188,120]
[351693632,1738743930750,150.0,0.0001875,120]
[351693633,1738743990750,150.0,0.00018554,120]
[351693634,1738744016621,540.0,0.00012,30]
[351693636,1738744043562,1000.0,0.000188,120]
[351693637,1738744050797,150.0,0.00018096,120]
[351693653,1738744110803,150.0,0.00018845,120]
[351693661,1738744145151,-871.39,8.219e-05,2]
[351693662,1738744145173,-158.51245355,8.799e-05,2]
[351693663,1738744145195,-500.0,8.799e-05,2]
[351693664,1738744145217,-459.41,8.799e-05,2]
[351693665,1738744145239,-1529.26761369,8.8e-05,2]
[351693667,1738744158462,82576.34771988,8e-05,2]
[351693668,1738744158491,59682.94,8e-05,2]
[351693669,1738744158514,2090000.0,8e-05,2]
[351693670,1738744158540,1991659.45,8e-05,2]
[351693671,1738744158569,981000.0,8e-05,2]
[351693672,1738744158592,228656.72357254,8e-05,2]
[351693673,1738744170755,150.0,0.00018213,120]
[351693674,1738744173139,-42024.3728119,8.8e-05,2]
[351693676,1738744230783,150.0,0.00017173,120]
[351693684,1738744231948,-290.53433946,8.799e-05,2]
[351693685,1738744231959,-105.31970004,8.799e-05,2]
[351693686,1738744232218,-394.68029996,8.799e-05,2]
[351693687,1738744232228,-747.82884091,8.8e-05,2]
[351693852,1738744238001,-641.69,8.799e-05,2]
[351693853,1738744238015,-500.0,8.799e-05,2]
[351693854,1738744238024,-8405.01869924,8.8e-05,2]
[351693855,1738744238035,-1996.23471448,8.8e-05,2]
[351693856,1738744238058,-4111.64,8.8e-05,2]
[351693922,1738744240003,-321.5919,8.8e-05,2]
[351693923,1738744240064,-322.310568,8.8e-05,2]
[351693931,1738744242989,-500.0,8.799e-05,2]
[351693932,1738744242999,-332344.02832444,8.8e-05,2]
[351693938,1738744246019,-5570.0,8.8e-05,2]
[351693939,1738744246077,-291.6,8.8e-05,2]
[351693945,1738744254860,-35771.35867829,8.8e-05,2]
[351693947,1738744410766,150.0,0.00018733,120]
[351693948,1738744470819,150.0,0.00018023,120]
[351693951,1738744650734,150.0,0.00017544,120]
[351693952,1738744694645,-500.0,8.22e-05,2]
[351693953,1738744694667,-1000.0,8.361e-05,2]
[351693954,1738744694688,-150.0,8.798e-05,2]
[351693955,1738744694709,-300.0,8.798e-05,2]
[351693956,1738744694729,-1168.65,8.799e-05,2]
[351693957,1738744694750,-332.9,8.799e-05,2]
[351693958,1738744694771,-500.0,8.799e-05,2]
[351693959,1738744694793,-365.73,8.799e-05,2]
[351693960,1738744694815,-500.0,8.799e-05,2]
[351693961,1738744694837,-500.0,8.799e-05,2]
[351693962,1738744694858,-500.0,8.799e-05,2]
[351693963,1738744694881,-450.15,8.799e-05,2]
[351693964,1738744694903,-500.0,8.799e-05,2]
[351693965,1738744694923,-406.98968407,8.799e-05,2]
[351693966,1738744694945,-500.0,8.799e-05,2]
[351693967,1738744694966,-500.0,8.799e-05,2]
[351693968,1738744694988,-500.0,8.799e-05,2]
[351693969,1738744695009,-500.0,8.799e-05,2]
[351693970,1738744695030,-500.0,8.799e-05,2]
[351693971,1738744695052,-500.0,8.799e-05,2]
[351693972,1738744695074,-500.0,8.799e-05,2]
[351693973,1738744695096,-500.0,8.799e-05,2]
[351693974,1738744695120,-767.54,8.799e-05,2]
[351693975,1738744695142,-314.09,8.799e-05,2]
[351693976,1738744695167,-500.0,8.799e-05,2]
[351693977,1738744695189,-500.0,8.799e-05,2]
[351693978,1738744695212,-500.0,8.799e-05,2]
[351693979,1738744695233,-500.0,8.799e-05,2]
[351693980,1738744695255,-392.37,8.799e-05,2]
[351693981,1738744695277,-500.0,8.799e-05,2]
[351693982,1738744695300,-500.0,8.799e-05,2]
[351693983,1738744695322,-500.0,8.799e-05,2]
[351693984,1738744695343,-500.0,8.799e-05,2]
[351693985,1738744695363,-438.98,8.799e-05,2]
[351693986,1738744695385,-415.78337815,8.799e-05,2]
[351693987,1738744695407,-500.0,8.799e-05,2]
[351693988,1738744695428,-203.08,8.799e-05,2]
[351693989,1738744695449,-500.0,8.799e-05,2]
[351693990,1738744695471,-500.0,8.799e-05,2]
[351693991,1738744695492,-500.0,8.799e-05,2]
[351693992,1738744695513,-331.99,8.799e-05,2]
[351693993,1738744695534,-272.15,8.799e-05,2]
[351693994,1738744695556,-440.38,8.799e-05,2]
[351693995,1738744695577,-254.08,8.799e-05,2]
[351693996,1738744695598,-257.66,8.799e-05,2]
[351693997,1738744695620,-369.58,8.799e-05,2]
[351693998,1738744695642,-500.0,8.799e-05,2]
[351693999,1738744695663,-500.0,8.799e-05,2]
[351694000,1738744695685,-500.0,8.799e-05,2]
[351694001,1738744695706,-500.0,8.799e-05,2]
[351694002,1738744695727,-500.0,8.799e-05,2]
[351694003,1738744695747,-500.0,8.799e-05,2]
[351694004,1738744695767,-638.07,8.799e-05,2]
[351694005,1738744695788,-386.67173653,8.799e-05,2]
[351694006,1738744695809,-342.44,8.799e-05,2]
[351694007,1738744695829,-359.08,8.799e-05,2]
[351694008,1738744695850,-500.0,8.799e-05,2]
[351694009,1738744695872,-326.68,8.799e-05,2]
[351694010,1738744695894,-500.0,8.799e-05,2]
[351694011,1738744695916,-500.0,8.799e-05,2]
[351694012,1738744695938,-500.0,8.799e-05,2]
[351694013,1738744695959,-591.6,8.799e-05,2]
[351694014,1738744695981,-379.37,8.799e-05,2]
[351694015,1738744696001,-225.67373946,8.799e-05,2]
[351694016,1738744696023,-32018.31146179,8.8e-05,2]
[351694017,1738744710767,150.0,0.0001865,120]
[351694019,1738744830827,150.0,0.00018058,120]
[351694020,1738744885860,5741.32,7.961e-05,2]
[351694021,1738744890738,150.0,0.00017723,120]
[351694022,1738744901510,1220.28,7.961e-05,2]
[351694023,1738744921564,186.33,7.952e-05,2]
[351694024,1738744923383,1852.42,7.952e-05,2]
[351694025,1738744941385,204.14,7.952e-05,2]
[351694028,1738744951305,150.0,0.00018051,120]
[351694029,1738744969383,23900.0,7.952e-05,2]
[351694030,1738744975011,-500.0,8.22e-05,2]
[351694031,1738744975032,-1334.26,8.251e-05,2]
[351694032,1738744975054,-1971.973,8.256e-05,2]
[351694033,1738744975076,-300.0,8.623e-05,2]
[351694034,1738744975098,-179.482,8.624e-05,2]
[351694035,1738744975119,-4512.486,8.624e-05,2]
[351694036,1738744975140,-201.799,8.629e-05,2]
[351694037,1738745130743,150.0,0.00017573,120]
[351694038,1738745130939,1975.03,7.924e-05,2]
[351694042,1738745237130,-273.20508598,8.037e-05,2]
[351694043,1738745238097,-485.64491402,8.037e-05,2]
[351694044,1738745238119,-286.38554352,8.057e-05,2]
[351694045,1738745250765,150.0,0.00017515,120]
[351694046,1738745310772,150.0,0.00017388,120]
[351694047,1738745320560,669.48,7.888e-05,2]
[351694048,1738745337882,1267.18,7.904e-05,2]
[351694049,1738745338403,200.0,7.904e-05,2]
[351694050,1738745346597,1394.35,7.941e-05,2]
[351694051,1738745361123,-6915.54445648,8.057e-05,2]
[351694052,1738745361143,-500.58,8.124e-05,2]
[351694053,1738745361164,-167.26,8.147e-05,2]
[351694054,1738745361184,-926.85,8.219e-05,2]
[351694055,1738745361204,-282.93,8.219e-05,2]
[351694056,1738745361224,-250.0,8.219e-05,2]
[351694057,1738745361244,-3706.49,8.219e-05,2]
[351694058,1738745361265,-500.0,8.22e-05,2]
[351694059,1738745361286,-150.0,8.603e-05,2]
[351694060,1738745361306,-150.0,8.609e-05,2]
[351694061,1738745361327,-150.0,8.61e-05,2]
[351694062,1738745361347,-282.36,8.61e-05,2]
[351694063,1738745361379,-2019.29,8.61e-05,2]
[351694064,1738745361400,-150.0,8.61e-05,2]
[351694065,1738745361421,-295.73566827,8.61e-05,2]
[351694066,1738745362252,-479.06433173,8.61e-05,2]
[351694067,1738745362273,-439.5,8.61e-05,2]
[351694068,1738745362293,-438.59,8.61e-05,2]
[351694069,1738745362315,-150.0,8.61e-05,2]
[351694070,1738745362336,-1283.13168863,8.629e-05,2]
[351694071,1738745370744,150.0,0.00018742,120]
[351694072,1738745373113,-515.06931137,8.629e-05,2]
[351694073,1738745373134,-150.0,8.63e-05,2]
[351694074,1738745373156,-774.8,8.63e-05,2]
[351694075,1738745373176,-439.5,8.63e-05,2]
[351694076,1738745373197,-300.0,8.63e-05,2]
[351694077,1738745373218,-438.59,8.63e-05,2]
[351694078,1738745373242,-438.59,8.63e-05,2]
[351694079,1738745373263,-439.5,8.63e-05,2]
[351694080,1738745373284,-774.8,8.63e-05,2]
[351694081,1738745373306,-774.8,8.63e-05,2]
[351694082,1738745373327,-438.59,8.63e-05,2]
[351694083,1738745373353,-299.29,8.63e-05,2]
[351694084,1738745373378,-150.0,8.63e-05,2]
[351694085,1738745373401,-439.5,8.63e-05,2]
[351694086,1738745373422,-500.0,8.63e-05,2]
[351694087,1738745373446,-8265.9771,8.699e-05,2]
[351694088,1738745373467,-503.67308608,8.773e-05,2]
[351694089,1738745373488,-501.21143477,8.773e-05,2]
[351694090,1738745373511,-160.33699075,8.773e-05,2]
[351694091,1738745373533,-113.04175228,8.773e-05,2]
[351694093,1738745408630,10489.34930809,1.05e-05,2]
[351694094,1738745427139,168.4,6.613e-05,2]
[351694095,1738745431325,150.0,0.00017761,120]
[351694104,1738745435310,-500.0,8.22e-05,2]
[351694105,1738745435320,-170.38,8.23e-05,2]
[351694106,1738745435330,-849.44,8.382e-05,2]
[351694107,1738745435339,-930.180002,8.629e-05,2]
[351694108,1738745435351,-69.819998,8.629e-05,2]
[351694109,1738745435360,-38.26509629,8.773e-05,2]
[351694110,1738745435370,-160.42478597,8.773e-05,2]
[351694111,1738745435379,-500.0,8.773e-05,2]
[351694112,1738745435393,-152.51339571,8.773e-05,2]
[351694113,1738745435402,-253.0,8.798e-05,2]
[351694114,1738745435411,-500.0,8.799e-05,2]
[351694115,1738745435421,-465.98134285,8.799e-05,2]
[351694116,1738745435430,-500.0,8.799e-05,2]
[351694117,1738745435439,-500.0,8.799e-05,2]
[351694118,1738745435450,-430.424,8.799e-05,2]
[351694119,1738745435460,-500.0,8.799e-05,2]
[351694120,1738745435469,-500.0,8.799e-05,2]
[351694121,1738745435479,-494.1472884,8.799e-05,2]
[351694122,1738745435488,-500.0,8.799e-05,2]
[351694123,1738745435497,-500.0,8.799e-05,2]
[351694124,1738745435506,-500.0,8.799e-05,2]
[351694125,1738745435516,-500.0,8.799e-05,2]
[351694126,1738745435525,-500.0,8.799e-05,2]
[351694127,1738745435534,-576.80565683,8.799e-05,2]
[351694128,1738745435544,-139.14908868,8.799e-05,2]
[351694129,1738745436116,-0.22155883,8.799e-05,2]
[351694130,1738745436133,-317.13312202,8.799e-05,2]
[351694131,1738745436146,-43.49623047,8.799e-05,2]
[351694132,1738745436155,-500.0,8.799e-05,2]
[351694133,1738745436165,-502.17627218,8.799e-05,2]
[351694134,1738745436175,-500.0,8.799e-05,2]
[351694135,1738745436185,-500.0,8.799e-05,2]
[351694136,1738745436195,-500.0,8.799e-05,2]
[351694137,1738745436205,-500.0,8.799e-05,2]
[351694138,1738745436215,-500.0,8.799e-05,2]
[351694139,1738745436225,-500.0,8.799e-05,2]
[351694140,1738745436240,-500.0,8.799e-05,2]
[351694141,1738745436249,-500.0,8.799e-05,2]
[351694142,1738745436259,-500.0,8.799e-05,2]
[351694143,1738745436269,-500.0,8.799e-05,2]
[351694144,1738745436279,-500.0,8.799e-05,2]
[351694145,1738745436289,-500.0,8.799e-05,2]
[351694146,1738745436301,-500.0,8.799e-05,2]
[351694147,1738745436311,-500.0,8.799e-05,2]
[351694148,1738745436320,-502.76952397,8.799e-05,2]
[351694149,1738745436330,-500.0,8.799e-05,2]
[351694150,1738745436340,-584.08174664,8.799e-05,2]
[351694151,1738745436350,-500.0,8.799e-05,2]
[351694152,1738745436361,-500.0,8.799e-05,2]